bitfinex/quotes_BTCUSD_20250119
["timestamp","ask_amount","ask_price","bid_price","bid_amount"]
[1737282996227,0.00561086,104530.0,104520.0,0.35190776]
[1737282996470,0.00561086,104530.0,104520.0,0.35095119]
[1737282997645,0.00561086,104530.0,104520.0,0.3605274]
[1737282999666,0.17210885,104530.0,104520.0,0.01561159]
[1737282999868,0.17210885,104530.0,104520.0,0.01650976]
[1737283000532,0.25257819,104530.0,104520.0,0.01650976]
[1737283000875,0.25257819,104530.0,104520.0,0.00693355]
[1737283001728,0.25257819,104530.0,104520.0,0.00094804]
[1737283004831,0.30077819,104530.0,104520.0,0.00094804]
[1737283006693,0.30077819,104530.0,104520.0,0.15094804]
[1737283007922,0.33077819,104530.0,104520.0,0.15094804]
[1737283008090,0.730019,104530.0,104520.0,0.15094804]
[1737283010263,0.92362033,104530.0,104520.0,0.15094804]
[1737283010462,0.95523775,104530.0,104520.0,0.15094804]
[1737283010675,0.80523775,104530.0,104520.0,0.15094804]
[1737283010876,0.80523775,104530.0,104520.0,0.09627803]
[1737283011922,0.80523775,104530.0,104520.0,0.08459014]
[1737283012154,0.80523775,104530.0,104520.0,0.04002128]
[1737283012382,0.70523775,104530.0,104520.0,0.04002128]
[1737283012933,0.70523775,104530.0,104520.0,0.04091945]
[1737283013138,0.70523775,104530.0,104520.0,0.01507217]
[1737283013344,0.095693,104500.0,104490.0,0.01656575]
[1737283013543,0.095693,104500.0,104490.0,0.01661526]
[1737283013544,0.1721221,104500.0,104490.0,0.01661526]
[1737283013753,0.2203221,104500.0,104490.0,0.01661526]
[1737283014192,0.2203221,104500.0,104490.0,0.00703547]
[1737283014615,0.1721221,104500.0,104490.0,0.00703547]
[1737283015238,0.27136291,104500.0,104490.0,0.00703547]
[1737283016070,0.42136291,104500.0,104490.0,0.00703547]
[1737283016369,0.46956291,104500.0,104490.0,0.00703547]
[1737283017350,0.46956291,104500.0,104490.0,0.0010481]
[1737283019404,0.47892854,104500.0,104490.0,0.0010481]
[1737283020542,0.43072854,104500.0,104490.0,0.0010481]
[1737283022498,0.11111706,104500.0,104490.0,0.0010481]
[1737283022876,0.14111706,104500.0,104490.0,0.0787481]
[1737283023989,0.0451934,104500.0,104490.0,0.27464788]
[1737283024183,0.03582777,104500.0,104490.0,0.27369091]
[1737283024381,0.00582777,104500.0,104490.0,0.32547874]
[1737283024711,0.00959215,104510.0,104500.0,0.173393]
[1737283025026,0.00875731,104510.0,104500.0,0.46401381]
[1737283025540,0.00642327,104510.0,104500.0,0.46401381]
[1737283025744,0.00857128,104510.0,104500.0,0.46401381]
[1737283026582,0.00857128,104510.0,104500.0,0.47957986]
[1737283027357,0.00857128,104510.0,104500.0,0.62957986]
[1737283027794,0.00857128,104510.0,104500.0,0.63521237]
[1737283030336,0.00857128,104510.0,104500.0,0.48521237]
[1737283030703,0.00857128,104510.0,104500.0,0.47957986]
[1737283030904,0.00642714,104510.0,104500.0,0.62957986]
[1737283031129,0.00642714,104510.0,104500.0,0.85943328]
[1737283031364,0.00642714,104510.0,104500.0,0.84575053]
[1737283033052,0.00642714,104510.0,104500.0,1.2317347]
[1737283033817,0.00642714,104510.0,104500.0,1.44541032]
[1737283034540,0.00642714,104510.0,104500.0,1.24144122]
[1737283036462,0.00642714,104510.0,104500.0,1.07482586]
[1737283038151,0.00642714,104510.0,104500.0,1.00422453]
[1737283038782,0.00642714,104510.0,104500.0,1.07482586]
[1737283039013,0.00642714,104510.0,104500.0,0.9458699]
[1737283039618,0.00642714,104510.0,104500.0,0.87526857]
[1737283040249,0.00642714,104510.0,104500.0,0.9458699]
[1737283040429,0.0004277,104520.0,104510.0,0.61755334]
[1737283040640,0.0004277,104520.0,104510.0,0.83391396]
[1737283040862,0.0004277,104540.0,104530.0,0.61753534]
[1737283041059,0.0004277,104540.0,104530.0,0.81037748]
[1737283041256,0.0004277,104540.0,104530.0,0.90612068]
[1737283042074,0.0004277,104540.0,104530.0,0.92705232]
[1737283042347,0.0004277,104540.0,104530.0,0.90612068]
[1737283042744,0.0004277,104540.0,104530.0,1.1201239]
[1737283043387,0.0004275,104580.0,104560.0,0.554692]
[1737283043581,0.00057707,104580.0,104570.0,0.00095618]
[1737283043767,0.09642873,104580.0,104560.0,0.65392581]
[1737283043966,0.09642873,104580.0,104560.0,0.84519281]
[1737283044188,0.00080773,104580.0,104570.0,0.095629]
[1737283044569,0.09642773,104580.0,104570.0,0.095629]
[1737283044815,0.28766873,104580.0,104560.0,0.65989036]
[1737283045135,0.29735948,104580.0,104560.0,0.65989036]
[1737283045464,0.01026782,104580.0,104570.0,0.09658519]
[1737283045668,0.01049848,104580.0,104570.0,0.09658519]
[1737283045886,0.10611848,104580.0,104570.0,0.00095619]
[1737283046137,0.10611848,104580.0,104560.0,0.65989036]
[1737283046364,0.09585966,104570.0,104560.0,0.10522336]
[1737283046762,0.09585966,104570.0,104560.0,0.20086136]
[1737283046963,0.09585966,104570.0,104560.0,0.10522336]
[1737283047369,0.09585966,104570.0,104560.0,0.00598255]
[1737283048031,0.29383656,104570.0,104550.0,0.46210647]
[1737283048245,0.29383656,104570.0,104550.0,0.75264228]
[1737283048448,0.29383656,104570.0,104550.0,0.56134728]
[1737283048840,0.29476999,104560.0,104550.0,0.00598255]
[1737283049014,0.30145652,104560.0,104550.0,0.00598255]
[1737283049194,0.00691719,104560.0,104550.0,0.10163055]
[1737283049394,0.10255519,104560.0,104550.0,0.00598255]
[1737283049646,0.29383719,104560.0,104540.0,0.29293055]
[1737283049800,0.29383719,104560.0,104540.0,0.39217136]
[1737283050012,0.29383719,104560.0,104540.0,0.58348436]
[1737283051775,0.29383719,104560.0,104540.0,0.48783436]
[1737283051971,0.29383719,104560.0,104540.0,0.58348436]
[1737283052183,0.48512419,104560.0,104540.0,0.39217136]
[1737283052386,0.46008752,104560.0,104540.0,0.20087336]
[1737283052588,0.55573352,104560.0,104540.0,0.39218636]
[1737283052811,0.56520753,104560.0,104540.0,0.39218636]
[1737283053174,0.37392053,104560.0,104540.0,0.39218636]
[1737283053415,0.03,104550.0,104540.0,0.61738636]
[1737283053616,0.03667092,104550.0,104540.0,0.61738636]
[1737283054892,0.03667092,104550.0,104540.0,0.62696049]
[1737283055091,0.00667092,104550.0,104540.0,0.62696049]
[1737283055499,0.37044936,104570.0,104550.0,0.47822]
[1737283055697,0.38003473,104570.0,104550.0,0.57746081]
[1737283055894,0.29713473,104570.0,104550.0,0.57746081]
[1737283056300,0.10587473,104570.0,104550.0,0.48181281]
[1737283056522,0.29713373,104570.0,104550.0,0.57745281]
[1737283056901,0.29713373,104570.0,104550.0,0.59300949]
[1737283057350,0.10587473,104570.0,104550.0,0.59300949]
[1737283057570,0.10587473,104570.0,104560.0,0.19583505]
[1737283057571,0.0004277,104570.0,104560.0,0.19583505]
[1737283057815,0.0004277,104570.0,104560.0,0.27103505]
[1737283058035,0.0004277,104570.0,104560.0,0.42007881]
[1737283058419,0.0004277,104570.0,104560.0,0.61344948]
[1737283058724,0.0004277,104570.0,104560.0,0.62900616]
[1737283059120,0.0086657,104570.0,104560.0,0.62900616]
[1737283060076,0.0086657,104570.0,104560.0,0.55840483]
[1737283060639,0.0156768,104570.0,104560.0,0.55840483]
[1737283060838,0.0156768,104570.0,104560.0,0.62900616]
[1737283061849,0.0156768,104570.0,104560.0,0.63829926]
[1737283063790,0.0156768,104570.0,104560.0,0.65786909]
[1737283066104,0.0156768,104570.0,104560.0,0.73106509]
[1737283066773,0.0156768,104570.0,104560.0,0.77886509]
[1737283066974,0.0156768,104570.0,104560.0,1.02457979]
[1737283067191,0.0086657,104570.0,104560.0,1.02457979]
[1737283067685,0.00843752,104570.0,104560.0,1.02457979]
[1737283068984,0.00057707,104580.0,104570.0,0.58899967]
[1737283069197,0.00057707,104580.0,104570.0,0.68824048]
[1737283069396,0.00765558,104580.0,104570.0,0.68824048]
[1737283070227,0.00765558,104580.0,104570.0,0.70379716]
[1737283070840,0.00765558,104580.0,104570.0,0.48319583]
[1737283070995,0.00765558,104580.0,104570.0,0.63319583]
[1737283072027,0.00765558,104580.0,104570.0,0.48319583]
[1737283073011,0.00765558,104580.0,104570.0,0.53079716]
[1737283073221,0.00765558,104580.0,104570.0,0.41454288]
[1737283074223,0.00765558,104580.0,104570.0,0.71774421]
[1737283074805,0.00765558,104580.0,104570.0,0.87096991]
[1737283075021,0.00057707,104580.0,104570.0,0.87096991]
[1737283075357,0.00057707,104580.0,104570.0,0.91876991]
[1737283076377,0.00057707,104580.0,104570.0,1.00381717]
[1737283076995,0.0078431,104580.0,104570.0,1.00381717]
[1737283077202,0.0078431,104580.0,104570.0,1.13277313]
[1737283077402,0.00057707,104580.0,104570.0,0.9121718]
[1737283077604,0.00057707,104580.0,104570.0,0.9089461]
[1737283077765,0.00057707,104580.0,104570.0,0.93092705]
[1737283077976,0.0078366,104580.0,104570.0,0.88312705]
[1737283078393,0.0078366,104580.0,104570.0,0.82901066]
[1737283078603,0.0078366,104580.0,104570.0,0.74641066]
[1737283078806,0.0078366,104580.0,104570.0,0.21042649]
[1737283079006,0.0078366,104580.0,104570.0,0.21138252]
[1737283079587,0.0078366,104580.0,104570.0,0.36138252]
[1737283079906,0.0078366,104580.0,104570.0,0.36042649]
[1737283080565,0.0078366,104580.0,104570.0,0.36575172]
[1737283081513,0.0078366,104580.0,104570.0,0.4998348]
[1737283082374,0.0078366,104580.0,104570.0,0.6498348]
[1737283083150,0.0078366,104580.0,104570.0,0.7289348]
[1737283083353,0.0078366,104580.0,104570.0,0.80865683]
[1737283084065,0.0078366,104580.0,104570.0,0.93761279]
[1737283084301,0.0078366,104580.0,104570.0,0.99513279]
[1737283084641,0.0078366,104580.0,104570.0,1.04353279]
[1737283084838,0.0004283,104590.0,104580.0,0.50725639]
[1737283085039,0.00089922,104600.0,104590.0,0.58634739]
[1737283085244,0.00740964,104600.0,104590.0,0.75618953]
[1737283085804,0.00740964,104600.0,104590.0,0.77174621]
[1737283086004,0.00740964,104600.0,104590.0,0.71422621]
[1737283086214,0.00740964,104600.0,104590.0,1.22883874]
[1737283087046,0.00855841,104620.0,104610.0,0.245593]
[1737283087246,0.00870786,104620.0,104610.0,0.34483381]
[1737283088440,0.03170786,104620.0,104610.0,0.34483381]
[1737283088692,0.03170786,104620.0,104610.0,0.36039049]
[1737283089055,0.20749186,104620.0,104610.0,0.36039049]
[1737283089280,0.11190786,104620.0,104610.0,0.36039049]
[1737283090647,0.11190786,104620.0,104610.0,0.21039049]
[1737283092628,0.11716344,104620.0,104610.0,0.21039049]
[1737283098310,0.28334877,104620.0,104610.0,0.01555668]
[1737283098426,0.33024877,104620.0,104610.0,0.01555668]
[1737283100308,0.33024877,104620.0,104610.0,0.00598255]
[1737283101499,0.35567561,104610.0,104600.0,0.00956979]
[1737283102053,0.361069,104610.0,104600.0,0.00956979]
[1737283102619,0.50927033,104610.0,104600.0,0.00956979]
[1737283103099,0.33270561,104600.0,104580.0,0.286846]
[1737283103273,0.35570561,104600.0,104590.0,0.09924081]
[1737283103473,0.36108497,104600.0,104590.0,0.09924081]
[1737283104526,0.36108497,104600.0,104590.0,0.11479307]
[1737283105494,0.36108497,104600.0,104590.0,0.01555226]
[1737283105981,0.02837936,104600.0,104590.0,0.21136009]
[1737283106645,0.02594111,104600.0,104590.0,0.21136009]
[1737283106844,0.02594111,104600.0,104590.0,0.21040407]
[1737283108580,0.02594111,104600.0,104590.0,0.21130224]
[1737283110830,0.02492271,104600.0,104590.0,0.21130224]
[1737283110982,0.00537936,104600.0,104590.0,0.21130224]
[1737283111386,0.00537936,104600.0,104590.0,0.44395817]
[1737283111588,0.00537936,104600.0,104590.0,0.44300224]
[1737283111794,0.47225147,104620.0,104600.0,0.286799]
[1737283111795,0.66342847,104620.0,104600.0,0.286799]
[1737283111994,0.7340298,104620.0,104600.0,0.38603981]
[1737283112198,0.74354305,104620.0,104600.0,0.38603981]
[1737283112606,0.74354305,104620.0,104600.0,0.57724381]
[1737283112806,0.023,104610.0,104600.0,0.40159207]
[1737283113019,0.023,104610.0,104600.0,0.21039107]
[1737283113221,0.23507794,104610.0,104600.0,0.01555226]
[1737283113464,0.31657794,104610.0,104600.0,0.01555226]
[1737283113672,0.24597661,104610.0,104600.0,0.01555226]
[1737283113879,0.31657794,104610.0,104600.0,0.01555226]
[1737283114309,0.31657794,104610.0,104600.0,0.00598164]
[1737283115422,0.27069433,104610.0,104600.0,0.00598164]
[1737283116664,0.32009433,104610.0,104600.0,0.00598164]
[1737283116977,0.41933514,104610.0,104600.0,0.00598164]
[1737283117178,0.118602,104600.0,104590.0,0.00089817]
[1737283117387,0.18920333,104600.0,104590.0,0.00089817]
[1737283119514,0.118602,104600.0,104590.0,0.00089817]
[1737283120450,0.1238658,104600.0,104590.0,0.00089817]
[1737283120638,0.1242935,104600.0,104590.0,0.00089817]
[1737283122135,0.0056915,104600.0,104590.0,0.09746527]
[1737283122478,0.14717711,104600.0,104590.0,0.19574998]
[1737283122754,0.14717711,104600.0,104590.0,0.21130309]
[1737283123177,0.17017711,104600.0,104590.0,0.21130309]
[1737283124219,0.17017711,104600.0,104590.0,0.11569209]
[1737283124426,0.24077844,104600.0,104590.0,0.01645128]
[1737283124654,0.19489483,104600.0,104590.0,0.01645128]
[1737283125678,0.19489483,104600.0,104590.0,0.00687972]
[1737283125994,0.17965163,104600.0,104590.0,0.20173153]
[1737283126204,0.17965163,104600.0,104590.0,0.00687972]
[1737283126408,0.13376802,104600.0,104590.0,0.00687972]
[1737283126616,0.20436935,104600.0,104590.0,0.00687972]
[1737283127076,0.20436935,104600.0,104590.0,0.01645128]
[1737283127305,0.27966935,104600.0,104590.0,0.01645128]
[1737283127855,0.27966935,104600.0,104590.0,0.00089817]
[1737283128339,0.20906802,104600.0,104590.0,0.00089817]
[1737283128537,0.27966935,104600.0,104590.0,0.00089817]
[1737283131652,0.0056915,104600.0,104590.0,0.27484998]
[1737283132064,0.0004277,104600.0,104590.0,0.27484998]
[1737283132219,0.00472939,104600.0,104590.0,0.42484998]
[1737283132430,0.0004277,104600.0,104590.0,0.42484998]
[1737283132644,0.00472939,104600.0,104590.0,0.42484998]
[1737283132984,0.00472939,104600.0,104590.0,0.43083083]
[1737283133470,0.00472939,104600.0,104590.0,0.28083083]
[1737283133630,0.073613,104600.0,104590.0,0.28083083]
[1737283133831,0.073613,104600.0,104590.0,0.10249002]
[1737283134475,0.02772939,104600.0,104590.0,0.28083083]
[1737283134651,0.073613,104600.0,104590.0,0.28083083]
[1737283136027,0.00472939,104600.0,104590.0,0.28083083]
[1737283139777,0.00472939,104600.0,104590.0,0.43083083]
[1737283140347,0.00472939,104600.0,104590.0,0.5164259]
[1737283140562,0.00472939,104600.0,104590.0,0.57054229]
[1737283140954,0.00472939,104600.0,104590.0,0.52613596]
[1737283141161,0.00472939,104600.0,104590.0,0.82707287]
[1737283141939,0.00472939,104600.0,104590.0,0.95515342]
[1737283143693,0.00472939,104600.0,104590.0,0.94544336]
[1737283143893,0.00472939,104600.0,104590.0,1.03132335]
[1737283144253,0.00472939,104600.0,104590.0,0.88132335]
[1737283144475,0.00472939,104600.0,104590.0,0.80222335]
[1737283144685,0.31721633,104600.0,104590.0,0.80222335]
[1737283144889,0.31721633,104600.0,104590.0,0.70298254]
[1737283145094,0.246615,104600.0,104590.0,0.22171497]
[1737283145296,0.27133272,104600.0,104590.0,0.22171497]
[1737283145501,0.30133272,104600.0,104590.0,0.22171497]
[1737283146128,0.30133272,104600.0,104590.0,0.00687902]
[1737283148441,0.30133272,104600.0,104590.0,0.00089817]
[1737283148854,0.31105063,104600.0,104590.0,0.00089817]
[1737283154077,0.28805063,104600.0,104590.0,0.00089817]
[1737283158684,0.21065063,104600.0,104590.0,0.09650917]
[1737283159094,0.03472939,104600.0,104590.0,0.10013898]
[1737283159271,0.03472939,104600.0,104590.0,0.19670609]
[1737283159272,0.0304277,104600.0,104590.0,0.19670609]
[1737283159487,0.0304277,104600.0,104590.0,0.32464998]
[1737283159965,0.0004277,104600.0,104590.0,0.54525131]
[1737283160149,0.0004277,104600.0,104590.0,0.5993677]
[1737283161003,0.0004277,104600.0,104590.0,1.12952977]
[1737283161734,0.0004277,104600.0,104590.0,0.8915713]
[1737283161937,0.0004277,104600.0,104590.0,0.82096997]
[1737283162340,0.0004277,104600.0,104590.0,0.76685358]
[1737283163761,0.0004277,104600.0,104590.0,0.89571361]
[1737283165699,0.0004277,104600.0,104590.0,0.69701361]
[1737283165907,0.0004277,104600.0,104590.0,0.8257506]
[1737283166310,0.0004277,104600.0,104590.0,0.9757506]
[1737283166836,0.0004277,104600.0,104590.0,0.29712487]
[1737283167831,0.14191331,104600.0,104590.0,0.11205871]
[1737283168037,0.0004277,104600.0,104590.0,0.11205871]
[1737283168241,0.0004277,104600.0,104590.0,0.21225555]
[1737283168456,0.04631131,104600.0,104590.0,0.21129952]
[1737283172507,0.04631131,104600.0,104590.0,0.21225553]
[1737283172508,0.0004277,104600.0,104590.0,0.21225553]
[1737283172941,0.0004277,104600.0,104590.0,0.36225553]
[1737283173146,0.0004277,104600.0,104590.0,0.36129952]
[1737283173345,0.0004277,104600.0,104590.0,0.55830085]
[1737283173663,0.0004277,104600.0,104590.0,0.48769952]
[1737283173881,0.0004277,104600.0,104590.0,0.57352487]
[1737283174040,0.0004277,104600.0,104590.0,0.57880115]
[1737283174617,0.0004277,104600.0,104590.0,1.00800753]
[1737283175157,0.0004277,104600.0,104590.0,0.94987187]
[1737283175366,0.0004277,104600.0,104590.0,0.87927054]
[1737283176363,0.0004277,104600.0,104590.0,0.70758399]
[1737283177202,0.0004277,104600.0,104590.0,0.70230771]
[1737283179159,0.0004277,104600.0,104590.0,0.71192777]
[1737283179945,0.0004277,104600.0,104590.0,0.88353922]
[1737283181755,0.0004277,104600.0,104590.0,1.0122388]
[1737283182150,0.0004277,104600.0,104590.0,1.01751361]
[1737283182980,0.0004277,104600.0,104590.0,0.96831361]
[1737283183697,0.0004277,104600.0,104590.0,0.83950032]
[1737283184672,0.0004277,104600.0,104590.0,0.66788887]
[1737283185546,0.21251464,104600.0,104590.0,0.481828]
[1737283185749,0.04631131,104600.0,104590.0,0.47655319]
[1737283185892,0.04631131,104600.0,104590.0,0.32655319]
[1737283186737,0.04631131,104600.0,104590.0,0.11205871]
[1737283187478,0.07631131,104600.0,104590.0,0.11205871]
[1737283188676,0.0304277,104600.0,104590.0,0.21129952]
[1737283188883,0.0304277,104600.0,104590.0,0.21225557]
[1737283189220,0.0304277,104600.0,104590.0,0.44475557]
[1737283189422,0.0004277,104600.0,104590.0,0.51440085]
[1737283190048,0.0004277,104600.0,104590.0,0.93973172]
[1737283190254,0.0004277,104600.0,104590.0,1.06520963]
[1737283191143,0.00870786,104620.0,104610.0,0.245593]
[1737283191344,0.00870786,104620.0,104610.0,0.42733381]
[1737283192070,0.00870786,104620.0,104610.0,1.02766797]
[1737283192648,0.00870786,104620.0,104610.0,1.04321751]
[1737283193341,0.00870786,104620.0,104610.0,0.82881245]
[1737283194243,0.00870786,104620.0,104610.0,0.6572884]
[1737283196819,0.00870786,104620.0,104610.0,0.82881245]
[1737283197224,0.00870786,104620.0,104610.0,0.74631245]
[1737283198750,0.00870786,104620.0,104610.0,0.5747884]
[1737283199597,0.00870786,104620.0,104610.0,0.5936597]
[1737283201209,0.00870786,104620.0,104610.0,0.76518375]
[1737283201975,0.00870786,104620.0,104610.0,0.5936597]
[1737283203752,0.00870786,104620.0,104610.0,0.76518375]
[1737283204464,0.00870786,104620.0,104610.0,0.84288375]
[1737283206966,0.00870786,104620.0,104610.0,1.23943653]
[1737283207174,8.6e-07,104620.0,104610.0,1.58176124]
[1737283207378,8.6e-07,104620.0,104610.0,1.61154373]
[1737283207880,8.6e-07,104620.0,104610.0,1.52578171]
[1737283208288,0.21475706,104660.0,104650.0,0.095556]
[1737283208437,0.21475706,104660.0,104650.0,0.34575222]
[1737283208637,0.21485232,104660.0,104650.0,0.55090614]
[1737283209267,0.21485232,104660.0,104650.0,0.5717223]
[1737283209712,0.21485232,104660.0,104650.0,0.54776069]
[1737283209908,0.21485232,104660.0,104650.0,1.06187072]
[1737283210807,0.21485232,104660.0,104650.0,0.87579606]
[1737283210967,0.21485232,104660.0,104650.0,0.95629606]
[1737283211170,0.21485232,104660.0,104650.0,1.15072944]
[1737283211810,0.21485232,104660.0,104650.0,1.2793741]
[1737283212055,0.19535493,104660.0,104650.0,1.3023741]
[1737283212294,0.0665961,104660.0,104650.0,1.32165935]
[1737283212539,0.04955855,104660.0,104650.0,1.30277846]
[1737283212751,0.03040655,104660.0,104650.0,1.30277846]
[1737283213045,0.0004278,104680.0,104670.0,0.44965439]
[1737283213271,0.0004278,104680.0,104670.0,0.72181903]
[1737283213753,0.0004278,104680.0,104670.0,0.42116474]
[1737283213990,0.0004278,104680.0,104670.0,0.49176607]
[1737283214234,0.0004278,104680.0,104670.0,0.56444474]
[1737283214463,0.0004278,104680.0,104670.0,0.77779867]
[1737283214704,0.0004278,104680.0,104670.0,0.62779867]
[1737283215423,0.0004278,104680.0,104670.0,0.41444474]
[1737283215657,0.0004278,104680.0,104670.0,0.40487579]
[1737283216131,0.0004278,104680.0,104670.0,0.47547712]
[1737283216348,0.0004278,104680.0,104670.0,0.58056771]
[1737283217091,0.0004278,104680.0,104670.0,0.59013666]
[1737283217295,0.0004277,104690.0,104680.0,0.05411639]
[1737283217644,0.00052293,104690.0,104680.0,0.47044246]
[1737283217777,0.00052293,104690.0,104680.0,0.3988862]
[1737283218334,0.00052293,104690.0,104680.0,0.41443574]
[1737283218755,0.00052293,104690.0,104680.0,0.63503707]
[1737283218916,0.00052293,104690.0,104680.0,0.8567384]
[1737283219093,9.3e-07,104690.0,104680.0,0.88070001]
[1737283219721,9.3e-07,104690.0,104680.0,0.93813001]
[1737283220116,0.0004276,104710.0,104700.0,0.20411639]
[1737283220315,0.00092554,104710.0,104700.0,0.8279099]
[1737283220533,0.00092554,104710.0,104700.0,0.7333539]
[1737283220738,0.00092554,104710.0,104700.0,0.5833539]
[1737283221115,0.00092554,104710.0,104700.0,0.60413512]
[1737283221316,0.00092554,104710.0,104700.0,0.75413512]
[1737283221519,0.00092554,104710.0,104700.0,0.41964842]
[1737283221789,0.00092554,104710.0,104700.0,0.36553203]
[1737283222642,0.00092554,104710.0,104700.0,0.36030035]
[1737283223228,0.00083779,104710.0,104700.0,0.36974623]
[1737283223978,0.00083779,104710.0,104700.0,0.37497791]
[1737283227605,0.00083779,104710.0,104700.0,0.39436443]
[1737283229210,0.00083779,104710.0,104700.0,0.43253743]
[1737283230285,0.00083779,104710.0,104700.0,0.38491855]
[1737283231612,0.00083779,104710.0,104700.0,0.37968687]
[1737283232011,0.00988975,104710.0,104700.0,0.37968687]
[1737283235099,0.00988975,104710.0,104700.0,0.36030035]
[1737283236307,0.00988975,104710.0,104700.0,0.21030035]
[1737283236504,0.08828975,104710.0,104700.0,0.21030035]
[1737283236703,0.00988975,104710.0,104700.0,0.36125532]
[1737283236933,0.00988975,104710.0,104700.0,0.36030035]
[1737283237883,0.0066559,104710.0,104700.0,0.36030035]
[1737283238875,0.0066559,104710.0,104700.0,0.36119831]
[1737283239697,0.0066559,104710.0,104700.0,0.48591603]
[1737283239905,0.0066559,104710.0,104700.0,0.54334603]
[1737283240110,0.00083779,104710.0,104700.0,0.72576842]
[1737283240264,0.0155727,104720.0,104710.0,0.245501]
[1737283240466,0.0155727,104720.0,104710.0,0.46945953]
[1737283241067,0.0155727,104720.0,104710.0,0.58058327]
[1737283241267,0.0155727,104720.0,104710.0,0.61026891]
[1737283241629,0.0155727,104720.0,104710.0,0.58058327]
[1737283242128,0.0155727,104720.0,104710.0,0.59947813]
[1737283242294,0.0155727,104720.0,104710.0,0.55859423]
[1737283242480,0.0155727,104720.0,104710.0,0.5765419]
[1737283243925,0.0155727,104720.0,104710.0,0.42685131]
[1737283244332,0.0155727,104720.0,104710.0,0.37823902]
[1737283244711,0.0155727,104720.0,104710.0,0.22823902]
[1737283244915,0.0155727,104720.0,104710.0,0.36029135]
[1737283248214,0.01540617,104720.0,104710.0,0.36029135]
[1737283250088,0.01540617,104720.0,104710.0,0.36118931]
[1737283251047,0.01583377,104720.0,104710.0,0.36118931]
[1737283254118,0.01583377,104720.0,104710.0,0.44653088]
[1737283255032,0.01583377,104720.0,104710.0,0.57454324]
[1737283255419,0.02171123,104720.0,104710.0,0.57454324]
[1737283255783,0.02171123,104720.0,104710.0,0.74522639]
[1737283256987,0.02171123,104720.0,104710.0,0.9594389]
[1737283261551,0.02171123,104720.0,104710.0,0.87409733]
[1737283262448,0.02171123,104720.0,104710.0,0.74608497]
[1737283263664,0.01956459,104720.0,104710.0,0.74608497]
[1737283266925,0.1409482,104720.0,104710.0,0.74608497]
[1737283267152,0.1409482,104720.0,104710.0,0.87485187]
[1737283267729,0.14446459,104720.0,104710.0,0.77561106]
[1737283267929,0.14446459,104720.0,104710.0,0.47656806]
[1737283268565,0.23995659,104720.0,104710.0,0.47656806]
[1737283268769,0.23995659,104720.0,104710.0,0.2619485]
[1737283269355,0.14446459,104720.0,104710.0,0.2619485]
[1737283269725,0.23995659,104720.0,104710.0,0.2619485]
[1737283269918,0.14761724,104720.0,104710.0,0.2619485]
[1737283272275,0.31371057,104720.0,104710.0,0.0164475]
[1737283272863,0.31371057,104720.0,104710.0,0.1119485]
[1737283273212,0.31371057,104720.0,104710.0,0.0164475]
[1737283273439,0.31371057,104720.0,104710.0,0.1119485]
[1737283273687,0.14761724,104720.0,104710.0,0.1119485]
[1737283274094,0.24310924,104720.0,104710.0,0.1119485]
[1737283274271,0.31371057,104720.0,104710.0,0.0164475]
[1737283274471,0.32317416,104720.0,104710.0,0.0164475]
[1737283274646,0.8930163,104720.0,104710.0,0.0164475]
[1737283275057,0.72241497,104720.0,104710.0,0.0164475]
[1737283275258,0.67241497,104720.0,104710.0,0.0164475]
[1737283275466,0.85241497,104720.0,104710.0,0.00687855]
[1737283275865,1.45193651,104720.0,104710.0,0.00687855]
[1737283276112,1.35193651,104720.0,104710.0,0.00687855]
[1737283276450,0.9526957,104720.0,104710.0,0.00687855]
[1737283276661,0.9293757,104720.0,104710.0,0.00687855]
[1737283277021,0.70858086,104720.0,104710.0,0.00089796]
[1737283277360,0.70858086,104720.0,104710.0,0.09639896]
[1737283277816,0.32317416,104720.0,104710.0,0.09639896]
[1737283278215,0.32317416,104720.0,104710.0,0.00089796]
[1737283279049,0.25257283,104720.0,104710.0,0.00089796]
[1737283279655,0.32317416,104720.0,104710.0,0.00687307]
[1737283281231,0.25257283,104720.0,104710.0,0.00687307]
[1737283283251,0.25257283,104720.0,104710.0,0.10237407]
[1737283283690,0.25257283,104720.0,104710.0,0.00687307]
[1737283284244,0.32317416,104720.0,104710.0,0.00687307]
[1737283285857,0.25257283,104720.0,104710.0,0.10237407]
[1737283286060,0.25257283,104720.0,104710.0,0.09639896]
[1737283287228,0.15708083,104720.0,104710.0,0.09639896]
[1737283288719,0.07806444,104720.0,104710.0,0.09639896]
[1737283288962,0.03218083,104720.0,104710.0,0.09639896]
[1737283289373,0.03218083,104720.0,104710.0,0.10237377]
[1737283293096,0.12767283,104720.0,104710.0,0.10237377]
[1737283293749,0.07806444,104720.0,104710.0,0.10237377]
[1737283294100,0.06860085,104720.0,104710.0,0.20161458]
[1737283294808,0.06860085,104720.0,104710.0,0.211174]
[1737283295007,0.02271724,104720.0,104710.0,0.211174]
[1737283295208,0.02271724,104720.0,104710.0,0.21212893]
[1737283295656,0.02271724,104720.0,104710.0,0.211174]
[1737283296468,0.02271724,104720.0,104710.0,0.29392889]
[1737283296671,0.02271724,104720.0,104710.0,0.292974]
[1737283298786,0.02271724,104720.0,104710.0,0.442974]
[1737283299346,0.02271724,104720.0,104710.0,0.465974]
[1737283302401,0.02271724,104720.0,104710.0,0.47534244]
[1737283302983,0.02271724,104720.0,104710.0,0.465974]
[1737283304496,0.02271724,104720.0,104710.0,0.53657533]
[1737283305487,0.02271724,104720.0,104710.0,0.63899172]
[1737283305687,0.0204692,104720.0,104710.0,0.63899172]
[1737283306093,0.0204692,104720.0,104710.0,1.02429443]
[1737283307261,0.02432249,104720.0,104710.0,1.23850694]
[1737283308836,4.9e-07,104720.0,104710.0,1.50123283]
[1737283308988,8.5e-07,104720.0,104710.0,1.52729547]
[1737283309194,6.1e-07,104720.0,104710.0,1.52729547]
[1737283309411,0.0004276,104730.0,104720.0,0.31203839]
[1737283309611,0.00057689,104730.0,104720.0,0.62573823]
[1737283309826,0.00057689,104730.0,104720.0,0.65129176]
[1737283310183,8.9e-07,104730.0,104720.0,1.21860981]
[1737283310389,8.9e-07,104730.0,104720.0,1.52709526]
[1737283310806,8.9e-07,104730.0,104720.0,1.55580082]
[1737283311344,8.9e-07,104730.0,104720.0,1.48446392]
[1737283312565,8.9e-07,104730.0,104720.0,1.35662328]
[1737283314286,8.9e-07,104730.0,104720.0,1.37276309]
[1737283315116,0.0004279,104770.0,104720.0,1.37276309]
[1737283315296,0.00057717,104770.0,104760.0,0.52029814]
[1737283315498,0.00057717,104770.0,104760.0,0.44969681]
[1737283315681,0.00057717,104770.0,104760.0,0.54522231]
[1737283315887,0.00057717,104770.0,104760.0,0.57077584]
[1737283316284,0.00057717,104770.0,104760.0,0.64137717]
[1737283316495,0.00057717,104770.0,104760.0,0.50431007]
[1737283316694,0.00057717,104770.0,104760.0,0.47875654]
[1737283318402,0.00057717,104770.0,104760.0,0.55925654]
[1737283319795,0.00034317,104770.0,104760.0,0.55925654]
[1737283320112,0.00034317,104770.0,104760.0,0.62985787]
[1737283320271,0.00034317,104770.0,104760.0,0.6554114]
[1737283320857,0.00034317,104770.0,104760.0,0.75223795]
[1737283321478,0.00034317,104770.0,104760.0,0.92136555]